fUSD/lending_fUSD_20240409
["ID","MTS","AMOUNT","RATE_DAILY","PERIOD"]
[321957780,1712650271397,-2756.82,0.00021369,2]
[321957781,1712650271407,-7259.57,0.00021369,2]
[321957782,1712650271417,-729.1,0.00021369,2]
[321957783,1712650271426,-2038.07,0.00021369,2]
[321957784,1712650271435,-7507.24,0.00021369,2]
[321957785,1712650271445,-500.0,0.00021369,2]
[321957786,1712650271454,-710.77,0.00021369,2]
[321957787,1712650271463,-1069.65,0.00021369,2]
[321957788,1712650271472,-1349.46,0.00021369,2]
[321957789,1712650271482,-500.0,0.00021369,2]
[321957790,1712650271493,-502.2727974,0.00021369,2]
[321957791,1712650271503,-500.0,0.00021369,2]
[321957792,1712650271513,-345.37,0.00021369,2]
[321957793,1712650271525,-500.0,0.00021369,2]
[321957794,1712650271535,-500.0,0.00021369,2]
[321957795,1712650271544,-30876.36073868,0.00021369,2]
[321957796,1712650271603,-500.0,0.00021095,2]
[321957797,1712650271616,-2647.01249559,0.00021369,2]
[321957798,1712650271628,-16990.36385165,0.00021369,2]
[321957799,1712650271639,-3114.09291408,0.00021369,2]
[321957800,1712650271650,-500.0,0.00021369,2]
[321957801,1712650271660,-6489.91,0.00021369,2]
[321957802,1712650271670,-359.53353609,0.00021369,2]
[321957803,1712650272761,-517.75102001,0.00020821,2]
[321957804,1712650272772,-140.46646391,0.00021369,2]
[321957805,1712650272782,-3750.15,0.00021369,2]
[321957806,1712650272792,-474.49606152,0.00021369,2]
[321957807,1712650272813,-25.50393848,0.00021369,2]
[321957808,1712650272823,-500.0,0.00021369,2]
[321957809,1712650272836,-60.28939805,0.00021369,2]
[321957810,1712650272848,-581.06031353,0.00021369,2]
[321957811,1712650272866,-453.99028842,0.00021369,2]
[321957812,1712650272879,-500.0,0.00021369,2]
[321957813,1712650272889,-500.0,0.00021369,2]
[321957814,1712650272901,-2063.00971158,0.00021369,2]
[321957815,1712650272917,-21.86028842,0.00021369,2]
[321957816,1712650272927,-513.94571158,0.00021369,2]
[321957817,1712650272939,-5973.02551918,0.00021369,2]
[321957818,1712650272951,-1549.69876924,0.00021369,2]
[321957819,1712650272960,-844.06,0.00021369,2]
[321957820,1712650272970,-500.0,0.00021369,2]
[321957821,1712650272980,-516.3373989,0.00021369,2]
[321957822,1712650272990,-500.0,0.00021369,2]
[321957823,1712650273000,-750.95,0.00021369,2]
[321957824,1712650273010,-500.0,0.00021369,2]
[321957825,1712650273020,-14.55125325,0.00021369,2]
[321957826,1712650273032,-485.44874675,0.00021369,2]
[321957827,1712650273042,-527.49,0.00021369,2]
[321957828,1712650273052,-21.17366713,0.00021369,2]
[321957829,1712650273082,-302.46498952,0.00020821,2]
[321957830,1712650273147,-197.53501048,0.00020821,2]
[321957831,1712650273160,-790.86481532,0.00021369,2]
[321957832,1712650273172,-12056.91151755,0.00021369,2]
[321957833,1712650273183,-517.21,0.00021369,2]
[321957834,1712650273193,-1280.21,0.00021369,2]
[321957835,1712650273203,-1146.87,0.00021369,2]
[321957836,1712650273213,-500.0,0.00021369,2]
[321957837,1712650273223,-500.0,0.00021369,2]
[321957838,1712650273233,-2860.28,0.00021369,2]
[321957839,1712650273244,-500.0,0.00021369,2]
[321957840,1712650273253,-258.73,0.00021369,2]
[321957841,1712650273264,-1740.41,0.00021369,2]
[321957842,1712650273273,-5087.9,0.00021369,2]
[321957843,1712650273283,-540.69,0.00021369,2]
[321957844,1712650273292,-500.0,0.00021369,2]
[321957845,1712650273301,-4306.36,0.00021369,2]
[321957846,1712650273311,-500.0,0.00021369,2]
[321957847,1712650273321,-500.0,0.00021369,2]
[321957848,1712650273332,-500.0,0.00021369,2]
[321957849,1712650273341,-500.0,0.00021369,2]
[321957850,1712650273351,-1205.82,0.00021369,2]
[321957851,1712650273366,-500.0,0.00021369,2]
[321957852,1712650273377,-1333.14,0.00021369,2]
[321957853,1712650273387,-1473.89,0.00021369,2]
[321957854,1712650273397,-500.0,0.00021369,2]
[321957855,1712650273408,-500.0,0.00021369,2]
[321957856,1712650273419,-589.3,0.00021369,2]
[321957857,1712650273428,-10567.9,0.00021369,2]
[321957858,1712650273438,-500.0,0.00021369,2]
[321957859,1712650273448,-500.0,0.00021369,2]
[321957860,1712650273459,-642.46310553,0.00021369,2]
[321957861,1712650273469,-766.07,0.00021369,2]
[321957862,1712650273479,-500.0,0.00021369,2]
[321957863,1712650273489,-24197.91,0.00021369,2]
[321957864,1712650273499,-500.0,0.00021369,2]
[321957865,1712650273509,-686.14,0.00021369,2]
[321957866,1712650273519,-500.0,0.00021369,2]
[321957867,1712650273530,-4141.53,0.00021369,2]
[321957868,1712650273541,-500.0,0.00021369,2]
[321957869,1712650273550,-553.21,0.00021369,2]
[321957870,1712650273560,-5562.14,0.00021369,2]
[321957871,1712650273570,-1010.31,0.00021369,2]
[321957872,1712650273580,-1348.91,0.00021369,2]
[321957873,1712650273589,-1749.68,0.00021369,2]
[321957874,1712650273598,-500.0,0.00021369,2]
[321957875,1712650273608,-1646.43,0.00021369,2]
[321957876,1712650273622,-560.91,0.00021369,2]
[321957877,1712650273632,-500.0,0.00021369,2]
[321957878,1712650273641,-500.0,0.00021369,2]
[321957879,1712650273653,-926.74,0.00021369,2]
[321957880,1712650273662,-787.26,0.00021369,2]
[321957881,1712650273671,-911.53,0.00021369,2]
[321957882,1712650273682,-500.0,0.00021369,2]
[321957883,1712650273690,-2022.97,0.00021369,2]
[321957884,1712650273699,-21872.28,0.00021369,2]
[321957885,1712650273708,-1177.35,0.00021369,2]
[321957886,1712650273718,-500.0,0.00021369,2]
[321957887,1712650273727,-28.98299017,0.00021369,2]
[321957888,1712650273786,-2089.81700983,0.00021369,2]
[321957889,1712650273796,-500.0,0.00021369,2]
[321957890,1712650273805,-500.0,0.00021369,2]
[321957891,1712650273815,-968.69,0.00021369,2]
[321957892,1712650273827,-1528.38,0.00021369,2]
[321957893,1712650273836,-500.0,0.00021369,2]
[321957894,1712650273846,-500.0,0.00021369,2]
[321957895,1712650273855,-2332.69,0.00021369,2]
[321957896,1712650273871,-500.0,0.00021369,2]
[321957897,1712650273881,-500.0,0.00021369,2]
[321957898,1712650273893,-615.19232376,0.00021369,2]
[321957899,1712650273902,-4186.02,0.00021369,2]
[321957900,1712650273912,-10575.5,0.00021369,2]
[321957901,1712650273922,-500.0,0.00021369,2]
[321957902,1712650273931,-500.0,0.00021369,2]
[321957903,1712650273941,-500.0,0.00021369,2]
[321957904,1712650273950,-831.0776994,0.00021369,2]
[321957905,1712650273966,-887.7323006,0.00021369,2]
[321957906,1712650273975,-1512.85,0.00021369,2]
[321957907,1712650273984,-500.0,0.00021369,2]
[321957908,1712650273994,-1278.37,0.00021369,2]
[321957909,1712650274004,-500.0,0.00021369,2]
[321957910,1712650274013,-1017.49,0.00021369,2]
[321957911,1712650274023,-238.18875918,0.00021369,2]
[321957912,1712650274035,-698.6981872,0.00021369,2]
[321957913,1712650274296,-2310.96305362,0.00021369,2]
[321957914,1712650274306,-874.52,0.00021369,2]
[321957915,1712650274315,-500.0,0.00021369,2]
[321957916,1712650274325,-331.63576323,0.00021369,2]
[321957917,1712650274334,-621.35,0.00021369,2]
[321957918,1712650274343,-4747.47,0.00021369,2]
[321957919,1712650274353,-500.0,0.00021369,2]
[321957920,1712650274365,-1466.7,0.00021369,2]
[321957921,1712650274375,-670.76,0.00021369,2]
[321957922,1712650274384,-3968.03,0.00021369,2]
[321957923,1712650274395,-15370.64078315,0.00021369,2]
[321957924,1712650275628,370.35892439,0.0002082,5]
[321957925,1712650281949,228.57,0.0002099,15]
[321957926,1712650282505,155.0,0.00018984,5]
[321957927,1712650295796,245.0739802,0.00019168,5]
[321957928,1712650326542,-4790.617,0.00019561,2]
[321957929,1712650326564,-1359.383,0.00019581,2]
[321957930,1712650383604,150.5,0.00021633,15]
[321957931,1712650499378,775.75,0.00017368,2]
[321957932,1712650503265,150.5,0.00021359,15]
[321957933,1712650511056,151.0,0.00026793,120]
[321957934,1712650538264,156.75,0.00019257,10]
[321957935,1712650570801,-155.0,0.00018435,2]
[321957936,1712650570823,-300.0,0.00018536,2]
[321957937,1712650570843,-2239.5,0.00019271,2]
[321957938,1712650644999,-203.92900507,0.00019157,2]
[321957939,1712650645026,-365.06217802,0.00019271,2]
[321957940,1712650645053,-435.33225777,0.00019271,2]
[321957941,1712650645079,-455.0,0.00019271,2]
[321957942,1712650645112,-564.54,0.00019271,2]
[321957943,1712650645136,-251.96,0.00019408,2]
[321957944,1712650645161,-150.0,0.00019409,2]
[321957945,1712650645186,-154.37,0.00019554,2]
[321957946,1712650645210,-1851.747,0.00019581,2]
[321957947,1712650645233,-1033.52071841,0.00019581,2]
[321957948,1712650645256,-255.57050584,0.00019581,2]
[321957949,1712650645280,-154.37,0.00019617,2]
[321957950,1712650645305,-124.59833489,0.00019631,2]
[321957951,1712650670841,331.82,0.00024329,15]
[321957952,1712650696044,169.78,0.00015477,2]
[321957953,1712650734714,19636.48974114,0.00015477,2]
[321957954,1712650737457,435.33225777,0.00015477,2]
[321957955,1712650751470,435.33225777,0.00015477,2]
[321957956,1712650754702,3063.1546646,0.00015477,2]
[321957957,1712650769464,435.33225777,0.00015477,2]
[321957958,1712650787478,435.33225777,0.00015477,2]
[321957959,1712650809463,435.33225777,0.00015477,2]
[321957960,1712650825482,435.33225777,0.00015477,2]
[321957961,1712650845466,435.33225777,0.00015477,2]
[321957962,1712650863517,505.18007145,0.00015477,2]
[321957963,1712650880916,151.0,0.00017368,2]
[321957964,1712650881568,152.0,0.00017368,2]
[321957971,1712651027282,1403.080944,0.00017368,2]
[321957976,1712651052658,736.96,0.00017254,2]
[321957982,1712651123393,-155.0,0.00019268,2]
[321957983,1712651123416,-2210.41202182,0.00019269,2]
[321957984,1712651123441,-1075.83,0.0001927,2]
[321957985,1712651123463,-209.43544588,0.00019271,2]
[321957986,1712651123485,-251.96,0.00019279,2]
[321957987,1712651123506,-2510.27,0.00019302,2]
[321957988,1712651123527,-1604.45,0.00019311,2]
[321957989,1712651123547,-250.0,0.00019335,2]
[321957990,1712651123567,-150.0,0.00019344,2]
[321957991,1712651123587,-11498.88,0.00019346,2]
[321957992,1712651123609,-83.7625323,0.00019399,2]
[321958027,1712651174246,311.08,0.00024329,15]
[321958028,1712651199913,2013.0,0.00026301,18]
[321958415,1712651432469,-155.0,0.00019315,2]
[321958416,1712651432479,-548.36,0.00019316,2]
[321958417,1712651432488,-169.50187208,0.00019372,2]
[321958418,1712651432497,-70.6074677,0.00019399,2]
[321958419,1712651432506,-154.37,0.00019472,2]
[321958420,1712651432516,-736.96,0.00019518,2]
[321958421,1712651432525,-154.37,0.00019544,2]
[321958422,1712651432534,-154.37,0.00019616,2]
[321958423,1712651432544,-375.39166511,0.00019631,2]
[321958424,1712651432554,-500.0,0.00019662,2]
[321958425,1712651432563,-154.37,0.00019688,2]
[321958426,1712651432573,-154.37,0.0001976,2]
[321958427,1712651432582,-105.26895006,0.00019833,2]
[321958428,1712651432613,-49.10104994,0.00019833,2]
[321958429,1712651432623,-154.37,0.00019905,2]
[321958430,1712651432632,-908.96496575,0.00019907,2]
[321958431,1712651432641,-154.37,0.00019977,2]
[321958432,1712651432651,-150.0,0.00019999,2]
[321958433,1712651432660,-150.0,0.00019999,2]
[321958434,1712651432670,-300.0,0.00019999,2]
[321958435,1712651432681,-9537.72512302,0.0002,2]
[321958436,1712651432689,-363.20661453,0.00020007,2]
[321958437,1712651432698,-1251.46309536,0.00020038,2]
[321958438,1712651432710,-39.42742799,0.00020038,2]
[321958439,1712651432718,-169.50187206,0.00020047,2]
[321958440,1712651432727,-154.37,0.00020049,2]
[321958441,1712651432736,-158.63,0.00020072,2]
[321958442,1712651432745,-158.63,0.00020083,2]
[321958443,1712651432753,-158.63,0.00020094,2]
[321958444,1712651432762,-158.63,0.00020106,2]
[321958445,1712651432771,-158.63,0.00020117,2]
[321958446,1712651432780,-154.37,0.00020121,2]
[321958447,1712651432789,-158.63,0.00020128,2]
[321958448,1712651432799,-158.63,0.00020139,2]
[321958449,1712651432808,-158.63,0.0002015,2]
[321958450,1712651432818,-158.63,0.00020161,2]
[321958451,1712651432828,-158.63,0.00020172,2]
[321958452,1712651432837,-154.37,0.00020194,2]
[321958453,1712651432846,-154.37,0.00020266,2]
[321958454,1712651432855,-154.37,0.00020338,2]
[321958455,1712651432864,-154.37,0.0002041,2]
[321958456,1712651432873,-150.0,0.000205,2]
[321958457,1712651432882,-524.0,0.0002052,2]
[321958459,1712651432892,-528.0,0.00020547,2]
[321958461,1712651432901,-166.07,0.00020674,2]
[321958463,1712651432911,-157.040917,0.00020717,2]
[321958465,1712651432920,-157.040917,0.00020717,2]
[321958467,1712651432932,-157.040917,0.00020717,2]
[321958469,1712651432942,-151.040917,0.00020718,2]
[321958470,1712651432951,-157.040917,0.00020718,2]
[321958471,1712651432960,-157.040917,0.00020718,2]
[321958472,1712651432969,-157.040917,0.00020718,2]
[321958473,1712651432979,-157.040917,0.00020718,2]
[321958474,1712651432988,-5622.80667254,0.00020721,2]
[321958475,1712651432997,-169.50187206,0.00020721,2]
[321958476,1712651433006,-152.33110609,0.00020721,2]
[321958477,1712651433015,-434.12931986,0.00020721,2]
[321958478,1712651433024,-1415.97265097,0.00020721,2]
[321958479,1712651433033,-330.09080851,0.00020721,2]
[321958480,1712651433057,-669.90919149,0.00020721,2]
[321958481,1712651433066,-1098.0464,0.00020721,2]
[321958482,1712651433076,-2500.0,0.00020721,2]
[321958483,1712651433086,-500.0,0.00020758,2]
[321958484,1712651433095,-3802.31422885,0.00020817,2]
[321958485,1712651433106,-3672.69187089,0.00020817,2]
[321958486,1712651433118,-267.95,0.00020817,2]
[321958487,1712651433140,-17452.22360005,0.00020817,2]
[321958488,1712651433172,-2421.1316563,0.00020817,2]
[321958489,1712651433186,-3491.55,0.00020817,2]
[321958490,1712651433222,-2506.95383909,0.00020817,2]
[321958527,1712651438574,-1069.3,0.00020261,2]
[321958528,1712651438584,-17.25423669,0.00020817,2]
[321958530,1712651438655,-2104.04066,0.00020817,2]
[321958534,1712651438686,-1050.20954,0.00020817,2]
[321958536,1712651438697,-1795.24,0.00020817,2]
[321958539,1712651438709,-2467.333772,0.00020817,2]
[321958542,1712651438728,-373.08992,0.00020817,2]
[321958550,1712651438797,-8247.80219551,0.00020817,2]
[321958552,1712651438808,-271.3,0.00020817,2]
[321958555,1712651438825,-2662.242,0.00020817,2]
[321958704,1712651440238,-595.793208,0.00020817,2]
[321958711,1712651440298,-139781.24304742,0.00020817,2]
[321958713,1712651440309,-1691.51322563,0.00020817,2]
[321958715,1712651440322,-2102.86489665,0.00020817,2]
[321958718,1712651440333,-2278.11500018,0.00020817,2]
[321958755,1712651440684,-1289.09122425,0.00020817,2]
[321958761,1712651440724,-346.17293858,0.00020817,2]
[321958763,1712651440741,-13971.4,0.00020817,2]
[321958960,1712651443287,-373209.27743987,0.00020817,2]
[321958962,1712651443297,-155.60557958,0.00020818,2]
[321958964,1712651443307,-500.0,0.00020818,2]
[321958966,1712651443316,-2112.30502165,0.00020819,2]
[321958968,1712651443325,-894.5781858,0.00020819,2]
[321958970,1712651443334,-2150.68506891,0.00020819,2]
[321958972,1712651443344,-4337.82028992,0.00020819,2]
[321958973,1712651443352,-199.82821578,0.00020819,2]
[321958974,1712651443362,-1251.17792584,0.00020819,2]
[321958975,1712651443371,-2354.31954713,0.00020819,2]
[321958976,1712651443380,-404.73102028,0.00020819,2]
[321958978,1712651443390,-550.75005717,0.00020819,2]
[321958980,1712651443400,-4727.27901978,0.00020819,2]
[321958982,1712651443410,-2349.93858112,0.00020819,2]
[321958984,1712651443419,-155.0,0.00020819,2]
[321958986,1712651443429,-292.71407055,0.00020819,2]
[321958988,1712651443440,-1083.07059246,0.00020819,2]
[321958989,1712651443449,-1390.59,0.00020819,2]
[321958990,1712651443459,-1778.7208445,0.0002082,2]
[321958991,1712651443468,-500.0,0.0002082,2]
[321958992,1712651443478,-236.04278617,0.0002082,2]
[321958993,1712651443488,-243.36280979,0.00020821,2]
[321958994,1712651443497,-578.28,0.00020821,2]
[321958995,1712651443507,-403.94318254,0.00020821,2]
[321958996,1712651443516,-383.08374367,0.00020821,2]
[321958997,1712651443526,-500.0,0.00020821,2]
[321958998,1712651443536,-500.0,0.00020821,2]
[321958999,1712651443547,-788.87,0.00020821,2]
[321959000,1712651443556,-500.0,0.00020821,2]
[321959001,1712651443566,-500.0,0.00020821,2]
[321959002,1712651443575,-542.35827656,0.00020821,2]
[321959003,1712651443585,-500.0,0.00020821,2]
[321959004,1712651443594,-500.0,0.00020821,2]
[321959005,1712651443603,-500.0,0.00020821,2]
[321959006,1712651443613,-598.29,0.00020821,2]
[321959007,1712651443623,-638.97,0.00020821,2]
[321959008,1712651443632,-500.0,0.00020821,2]
[321959009,1712651443644,-500.0,0.00020821,2]
[321959010,1712651443653,-697.69,0.00020821,2]
[321959011,1712651443662,-500.0,0.00020821,2]
[321959012,1712651443671,-566.72035905,0.00020821,2]
[321959013,1712651443680,-500.0,0.00020821,2]
[321959014,1712651443690,-705.47,0.00020821,2]
[321959015,1712651443700,-500.0,0.00020821,2]
[321959016,1712651443710,-521.30316909,0.00020821,2]
[321959017,1712651443719,-500.0,0.00020821,2]
[321959018,1712651443729,-500.0,0.00020821,2]
[321959019,1712651443738,-500.0,0.00020821,2]
[321959020,1712651443747,-500.0,0.00020821,2]
[321959021,1712651443757,-500.0,0.00020821,2]
[321959022,1712651443766,-500.0,0.00020821,2]
[321959023,1712651443775,-500.0,0.00020821,2]
[321959024,1712651443785,-500.0,0.00020821,2]
[321959025,1712651443794,-500.0,0.00020821,2]
[321959026,1712651443804,-500.0,0.00020821,2]
[321959027,1712651443814,-500.0,0.00020821,2]
[321959028,1712651443823,-500.0,0.00020821,2]
[321959029,1712651443833,-398.32947142,0.00020821,2]
[321959030,1712651443843,-500.0,0.00020821,2]
[321959031,1712651443852,-511.10668903,0.00020821,2]
[321959032,1712651443862,-500.0,0.00020821,2]
[321959033,1712651443872,-500.0,0.00020821,2]
[321959035,1712651443881,-648.49,0.00020821,2]
[321959037,1712651443890,-500.0,0.00020821,2]
[321959039,1712651443900,-500.0,0.00020821,2]
[321959041,1712651443909,-500.0,0.00020821,2]
[321959043,1712651443918,-570.12,0.00020821,2]
[321959045,1712651443927,-952.73,0.00020821,2]
[321959047,1712651443937,-500.0,0.00020821,2]
[321959049,1712651443947,-500.0,0.00020821,2]
[321959051,1712651443957,-500.0,0.00020821,2]
[321959053,1712651443967,-500.0,0.00020821,2]
[321959055,1712651443976,-500.0,0.00020821,2]
[321959057,1712651443986,-500.0,0.00020821,2]
[321959059,1712651443995,-500.0,0.00020821,2]
[321959061,1712651444004,-500.0,0.00020821,2]
[321959063,1712651444014,-491.46281957,0.00020821,2]
[321959065,1712651444023,-500.0,0.00020821,2]
[321959067,1712651444032,-500.0,0.00020821,2]
[321959069,1712651444042,-500.0,0.00020821,2]
[321959071,1712651444051,-500.0,0.00020821,2]
[321959073,1712651444061,-500.0,0.00020821,2]
[321959075,1712651444070,-584.45,0.00020821,2]
[321959077,1712651444079,-500.0,0.00020821,2]
[321959079,1712651444089,-500.0,0.00020821,2]
[321959081,1712651444098,-500.0,0.00020821,2]
[321959083,1712651444107,-500.0,0.00020821,2]
[321959086,1712651444117,-516.37405023,0.00020821,2]
[321959088,1712651444126,-500.0,0.00020821,2]
[321959090,1712651444135,-500.0,0.00020821,2]
[321959092,1712651444144,-1259.92,0.00020821,2]
[321959094,1712651444153,-500.0,0.00020821,2]
[321959096,1712651444164,-500.0,0.00020821,2]
[321959098,1712651444173,-500.0,0.00020821,2]
[321959100,1712651444188,-500.0,0.00020821,2]
[321959102,1712651444197,-500.0,0.00020821,2]
[321959104,1712651444207,-517.39,0.00020821,2]
[321959106,1712651444216,-736.17,0.00020821,2]
[321959108,1712651444226,-500.0,0.00020821,2]
[321959110,1712651444235,-500.0,0.00020821,2]
[321959112,1712651444244,-500.0,0.00020821,2]
[321959114,1712651444253,-500.0,0.00020821,2]
[321959116,1712651444263,-500.0,0.00020821,2]
[321959117,1712651444273,-500.0,0.00020821,2]
[321959120,1712651444282,-500.0,0.00020821,2]
[321959121,1712651444292,-500.0,0.00020821,2]
[321959124,1712651444302,-500.0,0.00020821,2]
[321959126,1712651444311,-500.0,0.00020821,2]
[321959128,1712651444320,-1007.08,0.00020821,2]
[321959129,1712651444330,-500.0,0.00020821,2]
[321959132,1712651444339,-500.0,0.00020821,2]
[321959134,1712651444349,-500.0,0.00020821,2]
[321959136,1712651444358,-500.0,0.00020821,2]
[321959137,1712651444367,-536.9447179,0.00020821,2]
[321959140,1712651444377,-500.0,0.00020821,2]
[321959141,1712651444387,-500.0,0.00020821,2]
[321959143,1712651444396,-500.0,0.00020821,2]
[321959146,1712651444407,-500.0,0.00020821,2]
[321959148,1712651444416,-500.0,0.00020821,2]
[321959150,1712651444426,-500.0,0.00020821,2]
[321959152,1712651444437,-527.94147745,0.00020821,2]
[321959153,1712651444446,-570.58489673,0.00020821,2]
[321959155,1712651444456,-1289.66,0.00020821,2]
[321959157,1712651444466,-539.36,0.00020821,2]
[321959158,1712651444475,-500.0,0.00020821,2]
[321959159,1712651444483,-500.0,0.00020821,2]
[321959160,1712651444492,-500.0,0.00020821,2]
[321959161,1712651444502,-500.0,0.00020821,2]
[321959162,1712651444511,-500.0,0.00020821,2]
[321959163,1712651444520,-500.0,0.00020821,2]
[321959164,1712651444529,-500.0,0.00020821,2]
[321959165,1712651444539,-500.34,0.00020821,2]
[321959166,1712651444548,-500.0,0.00020821,2]
[321959167,1712651444557,-500.0,0.00020821,2]
[321959168,1712651444567,-500.0,0.00020821,2]
[321959169,1712651444576,-500.0,0.00020821,2]
[321959171,1712651444586,-500.0,0.00020821,2]
[321959173,1712651444595,-500.0,0.00020821,2]
[321959175,1712651444606,-500.0,0.00020821,2]
[321959177,1712651444616,-562.89,0.00020821,2]
[321959179,1712651444625,-1030.19,0.00020821,2]
[321959181,1712651444634,-500.0,0.00020821,2]
[321959183,1712651444643,-515.63,0.00020821,2]
[321959184,1712651444653,-500.0,0.00020821,2]
[321959187,1712651444662,-500.0,0.00020821,2]
[321959188,1712651444672,-500.0,0.00020821,2]
[321959191,1712651444683,-1118.57,0.00020821,2]
[321959193,1712651444694,-500.0,0.00020821,2]
[321959195,1712651444703,-600.88447229,0.00020821,2]
[321959197,1712651444712,-581.52259579,0.00020821,2]
[321959199,1712651444722,-500.0,0.00020821,2]
[321959201,1712651444730,-621.92,0.00020821,2]
[321959203,1712651444739,-500.0,0.00020821,2]
[321959205,1712651444749,-500.0,0.00020821,2]
[321959207,1712651444758,-500.0,0.00020821,2]
[321959209,1712651444766,-500.0,0.00020821,2]
[321959211,1712651444776,-500.0,0.00020821,2]
[321959213,1712651444785,-500.0,0.00020821,2]
[321959215,1712651444794,-1375.73,0.00020821,2]
[321959226,1712651444887,-500.0,0.00020821,2]
[321959228,1712651444897,-670.32,0.00020821,2]
[321959230,1712651444906,-500.0,0.00020821,2]
[321959232,1712651444916,-500.0,0.00020821,2]
[321959234,1712651444924,-500.0,0.00020821,2]
[321959236,1712651444934,-546.88,0.00020821,2]
[321959238,1712651444943,-514.16,0.00020821,2]
[321959240,1712651444952,-2235.98,0.00020821,2]
[321959242,1712651444960,-500.0,0.00020821,2]
[321959244,1712651444969,-500.0,0.00020821,2]
[321959246,1712651444977,-500.0,0.00020821,2]
[321959247,1712651444987,-500.0,0.00020821,2]
[321959250,1712651444997,-500.0,0.00020821,2]
[321959252,1712651445006,-519.83352942,0.00020821,2]
[321959253,1712651445016,-500.0,0.00020821,2]
[321959255,1712651445025,-500.0,0.00020821,2]
[321959257,1712651445035,-500.0,0.00020821,2]
[321959260,1712651445044,-914.59,0.00020821,2]
[321959261,1712651445054,-500.0,0.00020821,2]
[321959263,1712651445063,-500.0,0.00020821,2]
[321959265,1712651445072,-500.0,0.00020821,2]
[321959267,1712651445081,-316.55738173,0.00020821,2]
[321959269,1712651445091,-618.14,0.00020821,2]
[321959271,1712651445100,-500.0,0.00020821,2]
[321959273,1712651445109,-630.84,0.00020821,2]
[321959275,1712651445119,-500.0,0.00020821,2]
[321959277,1712651445128,-1379.28,0.00020821,2]
[321959279,1712651445137,-500.0,0.00020821,2]
[321959282,1712651445147,-500.0,0.00020821,2]
[321959284,1712651445156,-500.0,0.00020821,2]
[321959286,1712651445171,-150.0,0.00020821,2]
[321959288,1712651445180,-500.0,0.00020821,2]
[321959290,1712651445191,-500.0,0.00020821,2]
[321959291,1712651445200,-639.67,0.00020821,2]
[321959293,1712651445210,-1041.09,0.00020821,2]
[321959295,1712651445219,-500.0,0.00020821,2]
[321959297,1712651445229,-1155.2,0.00020821,2]
[321959300,1712651445238,-500.0,0.00020821,2]
[321959301,1712651445247,-500.0,0.00020821,2]
[321959304,1712651445258,-500.0,0.00020821,2]
[321959305,1712651445267,-325.75288121,0.00020821,2]
[321959307,1712651445276,-1013.97,0.00020821,2]
[321959309,1712651445285,-500.0,0.00020821,2]
[321959311,1712651445294,-691.1,0.00020821,2]
[321959313,1712651445303,-500.0,0.00020821,2]
[321959315,1712651445312,-500.0,0.00020821,2]
[321959317,1712651445322,-764.72,0.00020821,2]
[321959319,1712651445331,-500.0,0.00020821,2]
[321959321,1712651445341,-300.0,0.00020821,2]
[321959323,1712651445351,-500.0,0.00020821,2]
[321959325,1712651445361,-500.0,0.00020821,2]
[321959327,1712651445370,-500.0,0.00020821,2]
[321959329,1712651445380,-552.99,0.00020821,2]